[Event "Superettan 2017/2018"]
[Site "Vegagatan 20, Gothenburg, Sweden"]
[Date "2018.02.04"]
[Round "3.13"]
[White "Alle Wahlin, Ambjorn"]
[Black "Fransson, Patrick"]
[Result "1/2-1/2"]
[TimeControl "90 minutes for 40 moves + 30 minutes for the rest of the game + 30 seconds per move from move one."]
[WhiteFideId "1714805"]
[BlackFideId "1709305"]
[WhiteElo "2224"]
[BlackElo "2136"]

1. Nf3 {[%clk 01:30:39]} {[%emt 00:00:20]} d5 {[%clk 01:29:45]} {[%emt
00:01:15]} 2. d4 {[%clk 01:29:35]} {[%emt 00:01:34]} c6 {[%clk 01:29:44]}
{[%emt 00:00:32]} 3. c4 {[%clk 01:29:51]} {[%emt 00:00:14]} e6 {[%clk
01:28:40]} {[%emt 00:01:34]} 4. e3 {[%clk 01:28:26]} {[%emt 00:01:54]} f5
{[%clk 01:25:57]} {[%emt 00:03:13]} 5. Bd3 {[%clk 01:26:43]} {[%emt 00:02:14]}
Nf6 {[%clk 01:24:37]} {[%emt 00:01:50]} 6. O-O {[%clk 01:26:47]} {[%emt
00:00:26]} Bd6 {[%clk 01:24:26]} {[%emt 00:00:42]} 7. b3 {[%clk 01:27:06]}
{[%emt 00:00:11]} O-O {[%clk 01:23:51]} {[%emt 00:01:05]} 8. Ba3 {[%clk
01:24:02]} {[%emt 00:04:27]} Bxa3 {[%clk 01:21:41]} {[%emt 00:02:31]} 9. Nxa3
{[%clk 01:23:39]} {[%emt 00:00:25]} a6 {[%clk 01:15:01]} {[%emt 00:06:56]} 10.
Qc2 {[%clk 01:16:49]} {[%emt 00:07:20]} Ne4 {[%clk 01:09:46]} {[%emt 00:05:48]}
11. Ne5 {[%clk 01:09:45]} {[%emt 00:07:29]} Nd7 {[%clk 01:03:43]} {[%emt
00:06:54]} 12. Nxd7 {[%clk 01:05:28]} {[%emt 00:04:28]} Bxd7 {[%clk 01:03:33]}
{[%emt 00:01:05]} 13. f3 {[%clk 01:05:37]} Nd6 {[%clk 01:00:41]} {[%emt
00:03:29]} 14. Qb2 {[%clk 00:48:47]} {[%emt 00:17:41]} Be8 {[%clk 00:57:10]}
{[%emt 00:03:49]} 15. Nb1 {[%clk 00:43:46]} {[%emt 00:05:39]} Bg6 {[%clk
00:53:47]} {[%emt 00:03:32]} 16. Nd2 {[%clk 00:38:11]} {[%emt 00:06:46]} Qd7
{[%clk 00:48:53]} {[%emt 00:04:33]} 17. Rae1 {[%clk 00:36:51]} {[%emt
00:01:50]} Rad8 {[%clk 00:47:31]} {[%emt 00:01:52]} 18. c5 {[%clk 00:33:56]}
{[%emt 00:03:26]} Ne8 {[%clk 00:41:48]} {[%emt 00:06:10]} 19. b4 {[%clk
00:33:02]} Nf6 {[%clk 00:40:47]} {[%emt 00:02:57]} 20. a4 {[%clk 00:33:01]} Be8
{[%clk 00:34:45]} {[%emt 00:07:03]} 21. b5 {[%clk 00:30:21]} axb5 {[%clk
00:34:20]} {[%emt 00:04:05]} 22. axb5 {[%clk 00:30:45]} g5 {[%clk 00:34:20]}
{[%emt 00:00:37]} 23. bxc6 {[%clk 00:30:45]} bxc6 {[%clk 00:34:30]} {[%emt
00:00:49]} 24. Rb1 {[%clk 00:29:42]} Qg7 {[%clk 00:33:36]} {[%emt 00:02:57]} 25.
Qb7 {[%clk 00:29:00]} Rf7 {[%clk 00:25:26]} {[%emt 00:09:51]} 26. Qb6 {[%clk
00:28:45]} Rc8 {[%clk 00:25:32]} {[%emt 00:01:10]} 27. Rb4 {[%clk 00:23:11]}
Ra7 {[%clk 00:21:36]} {[%emt 00:10:29]} 28. Ba6 {[%clk 00:16:53]} Rcc7 {[%clk
00:21:48]} {[%emt 00:08:38]} 29. Ra4 {[%clk 00:15:40]} Nd7 {[%clk 00:20:20]}
{[%emt 00:02:11]} 30. Qb4 {[%clk 00:15:04]} e5 {[%clk 00:16:42]} {[%emt
00:05:14]} 31. Nb3 {[%clk 00:13:49]} Qe7 {[%clk 00:13:54]} {[%emt 00:05:03]} 32.
Qc3 {[%clk 00:11:16]} Nb8 {[%clk 00:12:24]} {[%emt 00:05:02]} 33. Rfa1 {[%clk
00:11:12]} e4 {[%clk 00:12:28]} {[%emt 00:01:02]} 34. Nd2 {[%clk 00:09:37]} Bh5
{[%clk 00:10:42]} {[%emt 00:04:19]} 35. Bf1 {[%clk 00:03:10]} {[%emt 00:06:57]}
Rxa4 {[%clk 00:08:08]} {[%emt 00:03:04]} 36. Rxa4 {[%clk 00:03:38]} {[%emt
00:00:02]} Ra7 {[%clk 00:08:03]} {[%emt 00:00:35]} 37. Rb4 {[%clk 00:02:51]}
{[%emt 00:01:17]} Qc7 {[%clk 00:08:16]} {[%emt 00:00:17]} 38. g4 {[%clk
00:01:34]} {[%emt 00:01:47]} fxg4 {[%clk 00:05:38]} {[%emt 00:03:09]} 39. fxe4
{[%clk 00:01:55]} {[%emt 00:00:10]} g3 {[%clk 00:05:17]} {[%emt 00:00:51]} 40.
e5 {[%clk 00:00:40]} {[%emt 00:01:44]} gxh2+ {[%clk 00:04:39]} {[%emt
00:01:09]} 41. Kxh2 {[%clk 00:28:13]} {[%emt 00:02:57]} Nd7 {[%clk 00:29:58]}
{[%emt 00:05:10]} 42. Kg1 {[%clk 00:23:32]} {[%emt 00:05:11]} Nf8 {[%clk
00:26:45]} {[%emt 00:03:43]} 43. Bh3 {[%clk 00:13:52]} {[%emt 00:10:10]} Ng6
{[%clk 00:21:05]} {[%emt 00:06:10]} 44. Qb2 {[%clk 00:10:48]} {[%emt 00:03:34]}
Nh4 {[%clk 00:17:38]} {[%emt 00:03:57]} 45. Qb1 {[%clk 00:06:17]} {[%emt
00:05:01]} g4 {[%clk 00:16:17]} {[%emt 00:01:51]} 46. Bg2 {[%clk 00:01:33]}
{[%emt 00:05:13]} Nf3+ {[%clk 00:13:45]} {[%emt 00:03:03]} 47. Nxf3 {[%clk
00:00:40]} {[%emt 00:01:24]} gxf3 {[%clk 00:14:13]} {[%emt 00:00:01]} 48. Bh3
{[%clk 00:00:57]} {[%emt 00:00:12]} Qe7 {[%clk 00:06:41]} {[%emt 00:08:03]} 49.
Kh2 {[%clk 00:00:53]} {[%emt 00:00:34]} Bg6 {[%clk 00:06:14]} {[%emt 00:00:57]}
50. Qb2 {[%clk 00:00:49]} {[%emt 00:00:34]} Qh4 {[%clk 00:05:24]} {[%emt
00:01:20]} 51. Rb8+ {[%clk 00:00:42]} {[%emt 00:00:37]} Kg7 {[%clk 00:05:33]}
{[%emt 00:00:22]} 52. Rb7+ {[%clk 00:01:01]} {[%emt 00:00:11]} Rxb7 {[%clk
00:05:32]} {[%emt 00:00:31]} 53. Qxb7+ {[%clk 00:01:27]} {[%emt 00:00:03]} Kh6
{[%clk 00:05:23]} {[%emt 00:00:40]} 54. Qxc6 {[%clk 00:00:45]} {[%emt
00:01:12]} f2 {[%clk 00:03:28]} {[%emt 00:02:25]} 55. Qa6 {[%clk 00:00:33]}
{[%emt 00:00:41]} Qg5 {[%clk 00:02:32]} {[%emt 00:01:27]} 56. Bg2 {[%clk
00:00:57]} {[%emt 00:00:06]} Qxe3 {[%clk 00:02:38]} {[%emt 00:00:24]} 57. Qf6
{[%clk 00:00:54]} {[%emt 00:00:33]} Qxd4 {[%clk 00:01:06]} {[%emt 00:02:02]} 58.
Qf8 {[%clk 00:00:38]} {[%emt 00:00:46]} Kg5 {[%clk 00:01:22]} {[%emt 00:00:14]}
59. Qf6+ {[%clk 00:01:02]} {[%emt 00:00:06]} Kh6 {[%clk 00:01:47]} {[%emt
00:00:05]} 60. Qf8 {[%clk 00:01:00]} {[%emt 00:00:31]} Kg5 {[%clk 00:02:14]}
{[%emt 00:00:04]} 61. Qf6+ {[%clk 00:01:24]} {[%emt 00:00:06]} Kh6 {[%emt
00:00:06]} 1/2-1/2

[Event "Superettan 2017/2018"]
[Site "Vegagatan 20, Gothenburg, Sweden"]
[Date "2018.02.04"]
[Round "3.14"]
[White "Hansson, Fredrik"]
[Black "Lindahl, Emil"]
[Result "1/2-1/2"]
[TimeControl "90 minutes for 40 moves + 30 minutes for the rest of the game + 30 seconds per move from move one."]
[WhiteFideId "1713256"]
[BlackFideId "1713116"]
[WhiteElo "2177"]
[BlackElo "2177"]

1. e4 {[%clk 01:30:56]} {[%emt 00:00:03]} c5 {[%clk 01:30:29]} {[%emt
00:00:27]} 2. c3 {[%clk 01:31:10]} {[%emt 00:00:19]} d5 {[%clk 01:29:38]}
{[%emt 00:01:24]} 3. exd5 {[%clk 01:31:33]} {[%emt 00:00:07]} Qxd5 {[%clk
01:30:06]} {[%emt 00:00:03]} 4. d4 {[%clk 01:31:54]} {[%emt 00:00:07]} Nf6
{[%clk 01:30:17]} {[%emt 00:00:21]} 5. Nf3 {[%clk 01:32:17]} {[%emt 00:00:06]}
Bg4 {[%clk 01:30:21]} {[%emt 00:00:26]} 6. Be2 {[%clk 01:32:40]} {[%emt
00:00:06]} e6 {[%clk 01:29:55]} {[%emt 00:00:58]} 7. h3 {[%clk 01:33:04]}
{[%emt 00:00:05]} Bh5 {[%clk 01:30:13]} {[%emt 00:00:12]} 8. O-O {[%clk
01:33:14]} {[%emt 00:00:20]} Nc6 {[%clk 01:29:47]} {[%emt 00:00:57]} 9. Be3
{[%clk 01:33:30]} {[%emt 00:00:12]} cxd4 {[%clk 01:30:06]} {[%emt 00:00:12]} 10.
cxd4 {[%clk 01:33:55]} {[%emt 00:00:04]} Be7 {[%clk 01:29:52]} {[%emt
00:00:45]} 11. Nc3 {[%clk 01:34:17]} {[%emt 00:00:07]} Qd6 {[%clk 01:29:17]}
{[%emt 00:01:06]} 12. Qb3 {[%clk 01:34:39]} {[%emt 00:00:07]} O-O {[%clk
01:27:12]} {[%emt 00:02:36]} 13. Rfd1 {[%clk 01:33:40]} {[%emt 00:01:28]} Rfd8
{[%clk 01:22:33]} {[%emt 00:05:09]} 14. Rac1 {[%clk 01:33:50]} {[%emt
00:00:19]} Qb4 {[%clk 01:18:07]} {[%emt 00:05:42]} 15. Qxb4 {[%emt 00:01:20]}
Nxb4 16. g4 Bg6 17. Ne5 Nfd5 18. Bf3 Rac8 19. Nxd5 Nxd5 20. Nxg6 hxg6 21. Rxc8
Rxc8 22. Bxd5 exd5 23. Rc1 Rxc1+ 24. Bxc1 {[%clk 01:32:19]} Bd6 1/2-1/2

[Event "Superettan 2017/2018"]
[Site "Vegagatan 20, Gothenburg, Sweden"]
[Date "2018.02.04"]
[Round "3.15"]
[White "Olofsson-Dolk, Mattis"]
[Black "Virolainen, Victor"]
[Result "1-0"]
[TimeControl "90 minutes for 40 moves + 30 minutes for the rest of the game + 30 seconds per move from move one."]
[WhiteFideId "1715178"]
[BlackFideId "1710672"]
[WhiteElo "2165"]
[BlackElo "2173"]

1. e4 {[%clk 01:30:57]} {[%emt 00:00:02]} c5 {[%clk 01:30:29]} {[%emt
00:00:32]} 2. Nf3 {[%clk 01:31:19]} {[%emt 00:00:08]} d6 {[%clk 01:30:45]}
{[%emt 00:00:14]} 3. d4 {[%clk 01:31:41]} {[%emt 00:00:07]} cxd4 {[%clk
01:31:12]} {[%emt 00:00:04]} 4. Nxd4 {[%clk 01:32:03]} {[%emt 00:00:08]} Nf6
{[%clk 01:31:38]} {[%emt 00:00:03]} 5. Nc3 {[%clk 01:32:24]} {[%emt 00:00:09]}
Nc6 {[%clk 01:31:24]} {[%emt 00:00:45]} 6. Bg5 {[%clk 01:30:49]} {[%emt
00:02:05]} e6 {[%clk 01:30:59]} {[%emt 00:00:56]} 7. Qd2 {[%clk 01:30:38]}
{[%emt 00:00:40]} a6 {[%clk 01:30:35]} {[%emt 00:00:54]} 8. O-O-O {[%clk
01:29:16]} {[%emt 00:01:50]} Bd7 {[%clk 01:30:42]} {[%emt 00:00:25]} 9. Bxf6
{[%clk 01:24:23]} {[%emt 00:05:22]} gxf6 {[%clk 01:30:02]} {[%emt 00:01:11]} 10.
f4 {[%clk 01:22:57]} {[%emt 00:01:56]} Qb6 {[%clk 01:22:04]} {[%emt 01:29:35]}
11. Nxc6 {[%clk 01:21:35]} {[%emt 00:00:02]} bxc6 {[%clk 01:20:42]} 12. Qd4
{[%clk 01:10:25]} Qxd4 13. Rxd4 {[%clk 01:10:46]} c5 {[%clk 01:14:26]} 14. Rd3
{[%clk 01:06:17]} Bc6 {[%clk 01:10:02]} 15. Be2 {[%clk 01:01:17]} Bh6 {[%clk
00:48:57]} 16. Rf1 {[%clk 00:54:46]} Ke7 {[%clk 00:49:10]} 17. Rh3 {[%clk
00:44:40]} Bg7 {[%clk 00:49:36]} 18. Bf3 {[%clk 00:41:47]} {[%emt 00:00:01]}
Rab8 {[%clk 00:45:23]} {[%emt 00:04:42]} 19. f5 {[%clk 00:40:19]} {[%emt
00:01:58]} h5 {[%clk 00:37:02]} {[%emt 00:08:51]} 20. Kb1 {[%clk 00:33:34]}
{[%emt 00:07:15]} h4 {[%clk 00:35:03]} {[%emt 00:02:28]} 21. Bg4 {[%clk
00:32:38]} {[%emt 00:01:26]} Rb4 {[%clk 00:32:53]} {[%emt 00:02:40]} 22. Re1
{[%clk 00:30:54]} {[%emt 00:02:14]} Rhb8 {[%clk 00:30:30]} {[%emt 00:02:53]} 23.
b3 {[%clk 00:29:55]} {[%emt 00:01:29]} Bh6 {[%clk 00:29:19]} {[%emt 00:01:41]}
24. a3 {[%clk 00:28:30]} {[%emt 00:01:56]} Rd4 {[%clk 00:23:34]} {[%emt
00:06:14]} 25. fxe6 {[%clk 00:26:00]} {[%emt 00:03:01]} fxe6 {[%clk 00:23:17]}
{[%emt 00:00:48]} 26. Ne2 {[%clk 00:20:59]} {[%emt 00:05:30]} Rxe4 {[%clk
00:07:09]} {[%emt 00:16:37]} 27. Bf3 {[%clk 00:21:16]} {[%emt 00:00:13]} Bg5
{[%clk 00:07:21]} {[%emt 00:00:18]} 28. Bxe4 {[%clk 00:17:16]} {[%emt
00:04:31]} Bxe4 {[%clk 00:07:46]} {[%emt 00:00:04]} 29. g4 {[%clk 00:13:37]}
{[%emt 00:04:09]} Bg2 {[%clk 00:07:29]} {[%emt 00:00:47]} 30. Rd3 {[%clk
00:13:45]} {[%emt 00:00:22]} Be4 {[%clk 00:06:53]} {[%emt 00:01:07]} 31. Rh3
{[%clk 00:12:29]} {[%emt 00:01:46]} Bg2 {[%clk 00:06:40]} {[%emt 00:00:42]} 32.
Rd3 {[%clk 00:12:42]} {[%emt 00:00:17]} c4 {[%clk 00:04:56]} {[%emt 00:02:15]}
33. Rd4 {[%clk 00:11:38]} {[%emt 00:01:33]} cxb3 {[%clk 00:05:11]} {[%emt
00:00:15]} 34. Nf4 {[%clk 00:09:00]} {[%emt 00:03:08]} Bxf4 {[%clk 00:05:35]}
{[%emt 00:00:05]} 35. Rxf4 {[%clk 00:08:51]} {[%emt 00:00:09]} bxc2+ {[%clk
00:04:14]} {[%emt 00:01:52]} 36. Kxc2 {[%clk 00:09:50]} {[%emt 00:00:01]} d5
{[%clk 00:04:24]} {[%emt 00:00:19]} 37. Rb4 {[%clk 00:09:00]} {[%emt 00:01:20]}
Rc8+ {[%clk 00:02:26]} {[%emt 00:02:28]} 38. Kd2 {[%clk 00:09:08]} {[%emt
00:00:22]} Be4 {[%clk 00:02:25]} {[%emt 00:00:30]} 39. Rc1 {[%clk 00:07:56]}
{[%emt 00:01:43]} Rxc1 {[%clk 00:02:12]} {[%emt 00:00:44]} 40. Kxc1 {[%clk
00:08:24]} {[%emt 00:00:01]} Bd3 {[%clk 00:00:54]} {[%emt 00:01:47]} 41. Rb7+
{[%clk 00:05:11]} {[%emt 00:03:43]} Kd6 {[%clk 00:27:26]} {[%emt 00:03:58]} 42.
Kd2 {[%clk 00:35:17]} {[%emt 00:00:23]} Bf1 {[%clk 00:25:56]} {[%emt 00:02:00]}
43. Rh7 {[%clk 00:33:50]} {[%emt 00:01:57]} h3 {[%clk 00:20:20]} {[%emt
00:06:06]} 44. Rf7 {[%clk 00:32:57]} {[%emt 00:01:23]} Bg2 {[%clk 00:13:07]}
{[%emt 00:07:44]} 45. Rxf6 {[%clk 00:33:04]} {[%emt 00:00:23]} Ke5 {[%clk
00:13:32]} {[%emt 00:00:05]} 46. Rh6 {[%clk 00:31:31]} {[%emt 00:02:03]} d4
{[%clk 00:07:41]} {[%emt 00:06:21]} 47. g5 {[%clk 00:30:07]} {[%emt 00:01:54]}
Bf1 {[%clk 00:03:11]} {[%emt 00:05:00]} 48. g6 {[%clk 00:25:38]} {[%emt
00:05:00]} Kf6 {[%clk 00:03:27]} {[%emt 00:00:14]} 49. g7+ {[%clk 00:25:47]}
{[%emt 00:00:20]} Kxg7 {[%clk 00:03:53]} {[%emt 00:00:05]} 50. Rxe6 {[%clk
00:26:14]} {[%emt 00:00:03]} Bb5 {[%clk 00:02:31]} {[%emt 00:01:51]} 51. Re4
{[%clk 00:25:19]} {[%emt 00:01:25]} Kf6 {[%clk 00:02:44]} {[%emt 00:00:17]} 52.
Rh4 {[%clk 00:24:46]} {[%emt 00:01:04]} Bd7 {[%clk 00:01:29]} {[%emt 00:01:45]}
53. Rh6+ {[%clk 00:23:31]} {[%emt 00:01:45]} Ke5 {[%clk 00:01:54]} {[%emt
00:00:06]} 54. Rxa6 {[%clk 00:23:49]} {[%emt 00:00:12]} Ke4 {[%clk 00:02:21]}
{[%emt 00:00:02]} 55. Rg6 {[%clk 00:21:47]} {[%emt 00:02:32]} Kf3 {[%clk
00:02:32]} {[%emt 00:00:18]} 56. Rg3+ {[%clk 00:21:48]} {[%emt 00:00:29]} Ke4
{[%clk 00:02:57]} {[%emt 00:00:06]} 57. Rg7 {[%clk 00:21:58]} {[%emt 00:00:20]}
Bb5 {[%clk 00:03:18]} {[%emt 00:00:09]} 58. Rh7 {[%clk 00:19:27]} {[%emt
00:03:01]} Bf1 {[%clk 00:03:42]} {[%emt 00:00:06]} 59. Rh4+ {[%clk 00:17:17]}
{[%emt 00:02:40]} Kf3 {[%clk 00:04:01]} {[%emt 00:00:11]} 60. Ke1 {[%clk
00:17:03]} {[%emt 00:00:44]} Kg2 {[%clk 00:02:55]} {[%emt 00:01:36]} 61. Rg4+
{[%clk 00:16:54]} {[%emt 00:00:39]} Kxh2 {[%clk 00:03:05]} {[%emt 00:00:20]} 62.
Kxf1 {[%clk 00:17:15]} {[%emt 00:00:09]} d3 {[%clk 00:03:30]} {[%emt 00:00:05]}
63. Rd4 {[%clk 00:17:03]} {[%emt 00:00:42]} Kh1 {[%clk 00:03:53]} {[%emt
00:00:07]} 64. Rxd3 {[%clk 00:17:16]} {[%emt 00:00:18]} h2 {[%clk 00:04:19]}
{[%emt 00:00:04]} 65. Ke2 {[%clk 00:17:42]} {[%emt 00:00:04]} Kg2 {[%clk
00:04:44]} {[%emt 00:00:05]} 66. Rd1 {[%clk 00:18:06]} {[%emt 00:00:05]} 1-0

[Event "Superettan 2017/2018"]
[Site "Vegagatan 20, Gothenburg, Sweden"]
[Date "2018.02.04"]
[Round "3.16"]
[White "Subramanian, Aditya"]
[Black "Sevastianov, Andrii"]
[Result "1-0"]
[TimeControl "90 minutes for 40 moves + 30 minutes for the rest of the game + 30 seconds per move from move one."]
[WhiteFideId "1718924"]
[BlackFideId "1730240"]
[WhiteElo "2133"]
[BlackElo "2126"]

1. Nf3 {[%clk 01:30:44]} {[%emt 00:00:03]} e6 {[%clk 01:30:49]} {[%emt
00:00:23]} 2. c4 {[%clk 01:30:19]} {[%emt 00:00:56]} d5 {[%clk 01:31:04]}
{[%emt 00:00:14]} 3. e3 {[%clk 01:30:43]} {[%emt 00:00:07]} Nf6 {[%clk
01:30:38]} {[%emt 00:00:53]} 4. b3 {[%clk 01:30:03]} {[%emt 00:01:13]} Be7
{[%clk 01:26:20]} {[%emt 00:04:47]} 5. Bb2 {[%clk 01:30:25]} {[%emt 00:00:09]}
c5 {[%clk 01:24:57]} {[%emt 00:01:52]} 6. Nc3 {[%clk 01:30:01]} {[%emt
00:00:55]} O-O {[%clk 01:22:51]} {[%emt 00:02:35]} 7. cxd5 {[%clk 01:29:35]}
{[%emt 00:00:58]} Nxd5 {[%clk 01:19:59]} {[%emt 00:03:20]} 8. Nxd5 {[%clk
01:29:47]} {[%emt 00:00:19]} exd5 {[%clk 01:18:42]} {[%emt 01:28:24]} 9. d4
{[%clk 01:30:09]} Nc6 {[%clk 01:13:08]} {[%emt 00:00:01]} 10. a3 {[%clk
01:23:09]} Qa5+ {[%clk 01:01:09]} 11. Qd2 {[%clk 01:23:09]} Qxd2+ 12. Kxd2
{[%clk 01:23:33]} Bf6 {[%clk 01:01:46]} 13. Rc1 {[%clk 01:18:01]} cxd4 {[%clk
01:01:46]} 14. Nxd4 {[%clk 01:17:37]} Nxd4 {[%clk 01:01:09]} 15. Bxd4 {[%clk
01:18:00]} Bxd4 16. exd4 {[%clk 01:18:26]} Bd7 {[%clk 01:01:42]} 17. Be2 {[%clk
01:16:17]} Rfc8 {[%clk 00:58:25]} 18. Bf3 {[%clk 01:09:08]} Rxc1 19. Rxc1
{[%clk 01:09:28]} Bc6 {[%clk 00:57:23]} 20. Rc5 {[%clk 01:08:16]} Rd8 {[%clk
00:56:20]} 21. b4 {[%clk 01:08:17]} a6 {[%clk 00:56:15]} 22. Be2 {[%clk
01:08:12]} Rd6 {[%clk 00:49:57]} 23. a4 {[%clk 00:57:46]} b6 {[%clk 00:47:23]}
24. Rc3 {[%clk 00:58:05]} Kf8 {[%clk 00:47:41]} 25. Bxa6 {[%clk 00:54:22]} Rf6
{[%clk 00:40:47]} {[%emt 00:03:42]} 26. f3 {[%clk 00:41:46]} {[%emt 00:13:07]}
Rh6 {[%clk 00:38:00]} {[%emt 00:03:16]} 27. b5 {[%clk 00:30:22]} {[%emt
00:11:55]} Bd7 {[%clk 00:37:39]} {[%emt 00:00:49]} 28. h3 {[%clk 00:29:26]}
{[%emt 00:01:27]} Ke7 {[%clk 00:36:54]} {[%emt 00:01:15]} 29. Bb7 {[%clk
00:26:19]} {[%emt 00:03:37]} Kd6 {[%clk 00:35:56]} {[%emt 00:01:27]} 30. Bc8
{[%clk 00:19:52]} {[%emt 00:06:58]} Bxc8 {[%clk 00:28:21]} {[%emt 00:08:04]} 31.
Rxc8 {[%clk 00:20:17]} {[%emt 00:00:06]} Kd7 {[%clk 00:28:27]} {[%emt
00:00:23]} 32. Ra8 {[%clk 00:16:07]} {[%emt 00:04:40]} Rg6 {[%clk 00:25:33]}
{[%emt 00:03:22]} 33. g4 {[%clk 00:14:54]} {[%emt 00:01:45]} Rf6 {[%clk
00:13:05]} {[%emt 00:12:57]} 34. Ra7+ {[%clk 00:13:51]} {[%emt 00:01:34]} Kc8
{[%clk 00:13:26]} {[%emt 00:00:08]} 35. Ke3 {[%clk 00:14:01]} {[%emt 00:00:18]}
g5 {[%clk 00:13:21]} {[%emt 00:00:38]} 36. Re7 {[%clk 00:13:58]} {[%emt
00:00:32]} h6 {[%clk 00:13:22]} {[%emt 00:00:31]} 37. Re5 {[%clk 00:11:59]}
{[%emt 00:02:28]} Rd6 {[%clk 00:12:53]} {[%emt 00:00:57]} 38. Re8+ {[%clk
00:09:34]} {[%emt 00:02:56]} Kd7 {[%clk 00:12:46]} {[%emt 00:00:36]} 39. Rb8
{[%clk 00:09:25]} {[%emt 00:00:39]} Kc7 {[%clk 00:12:02]} {[%emt 00:01:15]} 40.
Ra8 {[%clk 00:09:22]} {[%emt 00:00:33]} Re6+ {[%clk 00:10:45]} {[%emt
00:01:46]} 41. Kf2 {[%clk 00:09:44]} {[%emt 00:00:09]} Rf6 {[%clk 00:08:45]}
{[%emt 00:02:28]} 42. Re8 {[%clk 00:07:12]} {[%emt 00:03:04]} Rf4 {[%clk
00:29:19]} {[%emt 00:09:55]} 43. Ke3 {[%clk 00:36:24]} {[%emt 00:01:18]} Rf6
{[%clk 00:28:57]} {[%emt 00:00:52]} 44. Re5 {[%clk 00:36:00]} {[%emt 00:00:54]}
Rd6 {[%clk 00:28:48]} {[%emt 00:00:38]} 45. h4 {[%clk 00:32:29]} {[%emt
00:04:03]} f6 {[%clk 00:24:45]} {[%emt 00:04:33]} 46. Re7+ {[%clk 00:31:25]}
{[%emt 00:01:33]} Kc8 {[%clk 00:24:52]} {[%emt 00:00:22]} 47. h5 {[%clk
00:30:39]} {[%emt 00:01:17]} Kd8 {[%clk 00:24:25]} {[%emt 00:00:55]} 48. Rh7
{[%clk 00:28:00]} {[%emt 00:03:10]} Re6+ {[%clk 00:23:41]} {[%emt 00:01:14]} 49.
Kf2 {[%clk 00:27:34]} {[%emt 00:00:56]} f5 {[%clk 00:23:39]} {[%emt 00:00:32]}
50. gxf5 {[%clk 00:27:34]} {[%emt 00:00:31]} Rf6 {[%clk 00:23:56]} {[%emt
00:00:12]} 51. Kg3 {[%clk 00:27:33]} {[%emt 00:00:31]} Kc8 {[%clk 00:23:11]}
{[%emt 00:01:14]} 52. Kg4 {[%clk 00:27:46]} {[%emt 00:00:18]} Kd8 {[%clk
00:23:31]} {[%emt 00:00:10]} 53. f4 {[%clk 00:27:46]} {[%emt 00:00:30]} 1-0